{"text_format":"1","workbook":"xlsx","n_sheets":5,"sheets":["Liens","BD","Parametres","ListeDesTextbox","Parametres111"],"not_rendered":{"charts":0,"images":4,"macros":1,"external_links":0,"defined_names":5,"comments":0,"pivot_tables":0},"unopened":[],"bounds":{"document_bytes":16777216,"sheet_cells":100000,"rows_first":2000,"rows_last":500,"rows_between":2000,"halvings":0,"cell_chars":16384,"cell_head_chars":4096},"cells_cut":0,"cells_raw":0,"read":"whole","date_system":"1900"}

{"sheet":"Liens","index":0,"n_rows":6,"n_cols":4,"rows_kept":6,"cut":false,"hidden":true,"merged":[]}
["L_Id","C_id","Type","Lien"]
[1,1,"Doc","D:\\Compostelle--GR34\\Avant d'acheter un sac à dos.pdf"]
[2,1,"Doc","D:\\Excel\\base_donnees\\FERDINAND ESSAI\\premier-1.png"]
[3,7,"Doc","D:\\Compostelle--GR34\\Clermont-Ferrand-Cahorss-2012.pdf"]
[4,1,"Img","D:\\Excel\\base_donnees\\FERDINAND ESSAI\\dernier-1.jpg"]
[5,6,"Img","D:\\Competitions Vol a Voile\\MATRICE--2023\\GESTION-DES-CONCURENTS\\PHOTOS\\NoImage.jpg"]

{"sheet":"BD","index":1,"n_rows":4,"n_cols":93,"rows_kept":4,"cut":false,"hidden":false,"merged":[]}
[]
[null,null,null,null,null,null,null,null,null,null,null,null,null,null,null,null,null,null,19]
["ID","Horodateur","AdresseMail","Civilite","Nom","Prenom","DateN","Age","adresse complette","Code postal","Ville","Pays","Autres Mail","InvitésOu…","Tel1","Tel2","Club","Catégorie","RankingID","RankingPosition","CodeFFVP","N°licenceFFVP","N°GIVAV","Profession","Certif Médical","Délivré Le","Fin de\n validité","N°LICENCEFAI","N° RC PILOTE\n","DATE RC PILOTE","Autorisation\nparentale","Nom Prénom et \ntéléphone parentale","DateArrivée","ObservationPilote","Colonne2","Colonne22","Civi-Copi","Nom-Copi","Prénom-copilote","Date de \nnaissanceCO","LIEU-DE-naissance","Professioncopilote","TélCopiF","TélCopiP","Club copi","N°Licence","Code Membre\nFFVP","N°GIVAVCopi","Ranking ID2","Ranking \nPosition","Mail Copi","Certicat\nmédical","Délivré","Fin de \nvalidation","Observation-copilote","Colonne7","Colonne8","CivilDep","NomDep","PrènomDep","TéléphoneDep","Colonne5","Colonne1","Civilité\nContact","Nom\ncontact","Prènom\ncontact","Téléphone \ncontact","Colonne6","vide5","NomPlaneur","Immat..","Nconcours","CatégorieP","Handicap","Transpondeur","Dispositif-Envol","DisposeTurboAutres","LoggerPrincipal","N°Flarm","LoggerSecours","Noms des logger","Validation \ncontôle","Nom du \ncontôleur","Câble de remorquage","Carnet \nde route","Manuel \nde vol","Fiche \nde pesé ","1-Propriétaire\n2-Locataire\n3-Exploitant","Raison sociale \ndu planeur","Adresse\n planeur","ObservationPlaneur","vide","Colonne4"]
[16,"14/02/2022 10:17:54","ABC@Gmail.com","Mr","A4","Jean louis","1964-06-11",null,null,null,null,"France",null,null,"00 00 00 04 00 ","00 00 00 03 00 ","Club-16",null,6553,null,null,null,null,null,null,null,null,null,null,null,null,null,null,null,null,null,null,null,null,null,null,null,null,null,null,null,null,null,null,null,null,null,null,null,null,null,null,null,null,null,null,null,null,null,null,null,null,null,null,"AK 8 ",null,null,null,108]

{"sheet":"Parametres","index":2,"n_rows":527,"n_cols":17,"rows_kept":527,"cut":false,"hidden":false,"merged":[[40,31,40,33],[37,31,37,33],[37,35,37,38],[38,31,38,33],[38,35,38,38],[39,31,39,33],[39,35,39,38],[34,31,34,33],[34,35,34,38],[35,31,35,33],[35,35,35,38],[36,31,36,33],[36,35,36,38],[31,31,31,33],[31,35,31,38],[32,31,32,33],[32,35,32,38],[33,31,33,33],[33,35,33,38],[28,31,28,33],[28,35,28,38],[29,31,29,33],[29,35,29,38],[30,31,30,33],[30,35,30,38],[25,31,25,33],[25,35,25,38],[26,31,26,33],[26,35,26,38],[27,31,27,33],[27,35,27,38],[24,31,24,33],[24,35,24,38],[2,30,2,37],[4,30,4,31],[7,32,7,33],[9,32,9,35],[11,32,11,35],[12,32,12,35],[13,30,13,31],[13,32,13,33],[15,30,15,37],[17,31,17,34],[22,30,22,37]]}
[]
[]
[null,null,null,null,null,null,null,null,null,null,"Nom Planeur","Handicap","Masse club",null,"Nom Contôleur",null,"banque"]
[null,null,null,null,null,null,null,null,null,null,"A60 Fauconnet",78,100,null,"---",null,"Banque nationnale populaire"]
[null,null,null,null,null,null,null,null,null,null,"AFH 22",98,110,null,"Jean claude Ferdinand",null,"Banque Postale"]
[null,null,null,null,null,null,null,null,null,null,"AFH 24 ",104,112,null,"Pascal Lachaise",null,"BCI"]
[null,null,null,null,null,null,null,null,null,null,"AK 5 ",102,null,null,"Daniel Barbaza",null,"Caisse d'Epargne"]
[null,null,null,null,null,null,null,null,null,null,"AK 8 ",108,null,null,"Regis Kuntz",null,"Crédit Agricole"]
[null,null,null,null,null,null,null,null,null,null,"Alliance 34",86,null,null,"Joël PASCAUD",null,"Crédit industriel et commercial"]
[null,null,null,null,null,null,null,null,null,null,"Alpin",84,null,null,"Franck ROCHE",null,"Crédit lyonais"]
[null,null,null,null,null,null,null,null,null,null,"Antares 18m ",119,null,null,"Jean Pierre Peghaire",null,"Credit Mutuel"]
[null,null,null,null,null,null,null,null,null,null,"Antares 20m ",null,null,null,null,null,"HSBC"]
[null,null,null,null,null,null,null,null,null,null,"Antares 23m ",null,null,null,null,null,"HSBC londres"]
[null,null,null,null,null,null,null,null,null,null,"Apis 15m",null,null,null,null,null,"Hello banck"]
[null,null,null,null,null,null,null,null,null,null,"Apis WR"]
[null,null,null,null,null,null,null,null,null,null,"Arcus M "]
[null,null,null,null,null,null,null,null,null,null,"Arcus S "]
[null,null,null,null,null,null,null,null,null,null,"Arcus T"]
[null,null,null,null,null,null,null,null,null,null,"Arcus20 M"]
[null,null,null,null,null,null,null,null,null,null,"Arcus20 S"]
[null,null,null,null,null,null,null,null,null,null,"Arcus20 T"]
[null,null,null,null,null,null,null,null,null,null,"AS 22"]
[null,null,null,null,null,null,null,null,null,null,"AS 22-2 "]
[null,null,null,null,null,null,null,null,null,null,"AS 33 15m "]
[null,null,null,null,null,null,null,null,null,null,"AS 33 18m"]
[null,null,null,null,null,null,null,null,null,null,"AS33 "]
[null,null,null,null,null,null,null,null,null,null,"AS33 Es"]
[null,null,null,null,null,null,null,null,null,null,"ASG 29 15m"]
[null,null,null,null,null,null,null,null,null,null,"ASG 29 18m "]
[null,null,null,null,null,null,null,null,null,null,"ASG 29 Es"]
[null,null,null,null,null,null,null,null,null,null,"ASG 32"]
[null,null,null,null,null,null,null,null,null,null,"ASG29"]
[null,null,null,null,null,null,null,null,null,null,"ASH 25 25,6m (750kg) "]
[null,null,null,null,null,null,null,null,null,null,"ASH 25 25,6m (790kg) "]
[null,null,null,null,null,null,null,null,null,null,"ASH 25 25m (750kg) "]
[null,null,null,null,null,null,null,null,null,null,"ASH 25 25m (790kg) "]
[null,null,null,null,null,null,null,null,null,null,"ASH 25 26m (750kg) "]
[null,null,null,null,null,null,null,null,null,null,"ASH 25 26m (790kg) "]
[null,null,null,null,null,null,null,null,null,null,"ASH 25 EB 27 "]
[null,null,null,null,null,null,null,null,null,null,"ASH 25 EB 28 "]
[null,null,null,null,null,null,null,null,null,null,"ASH 26 "]
[null,null,null,null,null,null,null,null,null,null,"ASH 30 "]
[null,null,null,null,null,null,null,null,null,null,"ASH 31 18m "]
[null,null,null,null,null,null,null,null,null,null,"ASH 31 21m "]
[null,null,null,null,null,null,null,null,null,null,"ASH30 Mi"]
[null,null,null,null,null,null,null,null,null,null,"ASK 13"]
[null,null,null,null,null,null,null,null,null,null,"ASK 14"]
[null,null,null,null,null,null,null,null,null,null,"ASK 16"]
[null,null,null,null,null,null,null,null,null,null,"ASK 18"]
[null,null,null,null,null,null,null,null,null,null,"ASK 21"]
[null,null,null,null,null,null,null,null,null,null,"ASK 23"]
[null,null,null,null,null,null,null,null,null,null,"Astir CS "]
[null,null,null,null,null,null,null,null,null,null,"Astir CS Jeans"]
[null,null,null,null,null,null,null,null,null,null,"Astir CS Top"]
[null,null,null,null,null,null,null,null,null,null,"Astir CS77"]
[null,null,null,null,null,null,null,null,null,null,"ASW 12 "]
[null,null,null,null,null,null,null,null,null,null,"ASW 15"]
[null,null,null,null,null,null,null,null,null,null,"ASW 15B"]
[null,null,null,null,null,null,null,null,null,null,"ASW 17 "]
[null,null,null,null,null,null,null,null,null,null,"ASW 19"]
[null,null,null,null,null,null,null,null,null,null,"ASW 19 club"]
[null,null,null,null,null,null,null,null,null,null,"ASW 19B "]
[null,null,null,null,null,null,null,null,null,null,"ASW 20"]
[null,null,null,null,null,null,null,null,null,null,"ASW 20 15m"]
[null,null,null,null,null,null,null,null,null,null,"ASW 20 16,6m "]
[null,null,null,null,null,null,null,null,null,null,"ASW 20 B 16,6m "]
[null,null,null,null,null,null,null,null,null,null,"ASW 20 C 16,6m "]
[null,null,null,null,null,null,null,null,null,null,"ASW 20 Top 15m "]
[null,null,null,null,null,null,null,null,null,null,"ASW 20 Top 16,6m "]
[null,null,null,null,null,null,null,null,null,null,"ASW 20L"]
[null,null,null,null,null,null,null,null,null,null,"ASW 22 22m "]
[null,null,null,null,null,null,null,null,null,null,"ASW 22 24m "]
[null,null,null,null,null,null,null,null,null,null,"ASW 22B "]
[null,null,null,null,null,null,null,null,null,null,"ASW 22BL (750kg) "]
[null,null,null,null,null,null,null,null,null,null,"ASW 22BL (850kg) "]
[null,null,null,null,null,null,null,null,null,null,"ASW 24"]
[null,null,null,null,null,null,null,null,null,null,"ASW 24B"]
[null,null,null,null,null,null,null,null,null,null,"ASW 27 "]
[null,null,null,null,null,null,null,null,null,null,"ASW 28 15m "]
[null,null,null,null,null,null,null,null,null,null,"ASW 28 18m "]
[null,null,null,null,null,null,null,null,null,null,"ASW20F"]
[null,null,null,null,null,null,null,null,null,null,"ASW24B"]
[null,null,null,null,null,null,null,null,null,null,"ASW27"]
[null,null,null,null,null,null,null,null,null,null,"AV 22"]
[null,null,null,null,null,null,null,null,null,null,"AV 36"]
[null,null,null,null,null,null,null,null,null,null,"B 12 "]
[null,null,null,null,null,null,null,null,null,null,"B 13 "]
[null,null,null,null,null,null,null,null,null,null,"Banjo"]
[null,null,null,null,null,null,null,null,null,null,"Bee"]
[null,null,null,null,null,null,null,null,null,null,"Bee FFVP"]
[null,null,null,null,null,null,null,null,null,null,"Bergfalke II"]
[null,null,null,null,null,null,null,null,null,null,"Bergfalke III"]
[null,null,null,null,null,null,null,null,null,null,"Bergfalke IV"]
[null,null,null,null,null,null,null,null,null,null,"Bijave"]
[null,null,null,null,null,null,null,null,null,null,"Bocian"]
[null,null,null,null,null,null,null,null,null,null,"Breguet 901"]
[null,null,null,null,null,null,null,null,null,null,"Breguet 904"]
[null,null,null,null,null,null,null,null,null,null,"Breguet 905"]
[null,null,null,null,null,null,null,null,null,null,"BS 1 "]
[null,null,null,null,null,null,null,null,null,null,"C 25S"]
[null,null,null,null,null,null,null,null,null,null,"C 30 Edelweiss"]
[null,null,null,null,null,null,null,null,null,null,"C 38"]
[null,null,null,null,null,null,null,null,null,null,"Calif A 21"]
[null,null,null,null,null,null,null,null,null,null,"Carat"]
[null,null,null,null,null,null,null,null,null,null,"CB15 Crystal "]
[null,null,null,null,null,null,null,null,null,null,"Cirrus 17,74m "]
[null,null,null,null,null,null,null,null,null,null,"Cirrus B 18,34m "]
[null,null,null,null,null,null,null,null,null,null,"CIRRUS Std"]
[null,null,null,null,null,null,null,null,null,null,"Cobra 15"]
[null,null,null,null,null,null,null,null,null,null,"Cobra 17m "]
[null,null,null,null,null,null,null,null,null,null,"Concordia "]
[null,null,null,null,null,null,null,null,null,null,"Condor IV"]
[null,null,null,null,null,null,null,null,null,null,"D 36 "]
[null,null,null,null,null,null,null,null,null,null,"D 37 "]
[null,null,null,null,null,null,null,null,null,null,"D 38"]
[null,null,null,null,null,null,null,null,null,null,"D 40 "]
[null,null,null,null,null,null,null,null,null,null,"D 41 "]
[null,null,null,null,null,null,null,null,null,null,"Delphin I "]
[null,null,null,null,null,null,null,null,null,null,"DG 100 "]
[null,null,null,null,null,null,null,null,null,null,"DG 100 club"]
[null,null,null,null,null,null,null,null,null,null,"DG 100 Elan "]
[null,null,null,null,null,null,null,null,null,null,"DG 1000 18m train fixe "]
[null,null,null,null,null,null,null,null,null,null,"DG 1000 18m train rentrant "]
[null,null,null,null,null,null,null,null,null,null,"DG 1000 20m train fixe "]
[null,null,null,null,null,null,null,null,null,null,"DG 1000 20m train rentrant"]
[null,null,null,null,null,null,null,null,null,null,"DG 1001 Club 18m train fixe "]
[null,null,null,null,null,null,null,null,null,null,"DG 1001 Club 20m train fixe "]
[null,null,null,null,null,null,null,null,null,null,"DG 1001S 20m"]
[null,null,null,null,null,null,null,null,null,null,"DG 1001S 20m "]
[null,null,null,null,null,null,null,null,null,null,"DG 100G "]
[null,null,null,null,null,null,null,null,null,null,"DG 100G Elan "]
[null,null,null,null,null,null,null,null,null,null,"DG 200 15m "]
[null,null,null,null,null,null,null,null,null,null,"DG 200 17m "]
[null,null,null,null,null,null,null,null,null,null,"DG 300 "]
[null,null,null,null,null,null,null,null,null,null,"DG 300 Elan"]
[null,null,null,null,null,null,null,null,null,null,"DG 300 train fixe "]
[null,null,null,null,null,null,null,null,null,null,"DG 300 WL"]
[null,null,null,null,null,null,null,null,null,null,"DG 303"]
[null,null,null,null,null,null,null,null,null,null,"DG 400 15m "]
[null,null,null,null,null,null,null,null,null,null,"DG 400 17m "]
[null,null,null,null,null,null,null,null,null,null,"DG 500 18m "]
[null,null,null,null,null,null,null,null,null,null,"DG 500 18m train fixe "]
[null,null,null,null,null,null,null,null,null,null,"DG 500 18m train rentrant "]
[null,null,null,null,null,null,null,null,null,null,"DG 500 20m "]
[null,null,null,null,null,null,null,null,null,null,"DG 500 22m "]
[null,null,null,null,null,null,null,null,null,null,"DG 505 18m train fixe "]
[null,null,null,null,null,null,null,null,null,null,"DG 505 18m train rentrant "]
[null,null,null,null,null,null,null,null,null,null,"DG 505 20m "]
[null,null,null,null,null,null,null,null,null,null,"DG 505 22m "]
[null,null,null,null,null,null,null,null,null,null,"DG 600 15m "]
[null,null,null,null,null,null,null,null,null,null,"DG 600 17m "]
[null,null,null,null,null,null,null,null,null,null,"DG 600 18m "]
[null,null,null,null,null,null,null,null,null,null,"DG 800 15m"]
[null,null,null,null,null,null,null,null,null,null,"DG 800B 18m "]
[null,null,null,null,null,null,null,null,null,null,"DG 800S 18m "]
[null,null,null,null,null,null,null,null,null,null,"DG 808 15m"]
[null,null,null,null,null,null,null,null,null,null,"DG 808B 18m "]
[null,null,null,null,null,null,null,null,null,null,"DG 808C 18m 11"]
[null,null,null,null,null,null,null,null,null,null,"Diamant 16,5m "]
[null,null,null,null,null,null,null,null,null,null,"Diamant 18m "]
[null,null,null,null,null,null,null,null,null,null,"Diana "]
[null,null,null,null,null,null,null,null,null,null,"Diana 2 "]
[null,null,null,null,null,null,null,null,null,null,"Diana 3"]
[null,null,null,null,null,null,null,null,null,null,"Dimona"]
[null,null,null,null,null,null,null,null,null,null,"Discus 2a "]
[null,null,null,null,null,null,null,null,null,null,"Discus 2a 15m"]
[null,null,null,null,null,null,null,null,null,null,"Discus 2b "]
[null,null,null,null,null,null,null,null,null,null,"Discus 2c"]
[null,null,null,null,null,null,null,null,null,null,"Discus 2c 15m "]
[null,null,null,null,null,null,null,null,null,null,"Discus 2c 18m "]
[null,null,null,null,null,null,null,null,null,null,"Discus 2c FES"]
[null,null,null,null,null,null,null,null,null,null,"Discus a"]
[null,null,null,null,null,null,null,null,null,null,"Discus b"]
[null,null,null,null,null,null,null,null,null,null,"Discus CS "]
[null,null,null,null,null,null,null,null,null,null,"Duo Banjo"]
[null,null,null,null,null,null,null,null,null,null,"Duo Discus "]
[null,null,null,null,null,null,null,null,null,null,"Duo Discus X"]
[null,null,null,null,null,null,null,null,null,null,"Duo Discus XL"]
[null,null,null,null,null,null,null,null,null,null,"EB 28 "]
[null,null,null,null,null,null,null,null,null,null,"EB 28 Edition "]
[null,null,null,null,null,null,null,null,null,null,"EB 29 "]
[null,null,null,null,null,null,null,null,null,null,"EB 29D "]
[null,null,null,null,null,null,null,null,null,null,"EB 29DR "]
[null,null,null,null,null,null,null,null,null,null,"EB 29R "]
[null,null,null,null,null,null,null,null,null,null,"Elfe 17m "]
[null,null,null,null,null,null,null,null,null,null,"Elfe S3"]
[null,null,null,null,null,null,null,null,null,null,"Elfe S4"]
[null,null,null,null,null,null,null,null,null,null,"Elfe train fixe"]
[null,null,null,null,null,null,null,null,null,null,"Eta "]
[null,null,null,null,null,null,null,null,null,null,"Falkon "]
[null,null,null,null,null,null,null,null,null,null,"Foka 4"]
[null,null,null,null,null,null,null,null,null,null,"Foka 5"]
[null,null,null,null,null,null,null,null,null,null,"Fs 25"]
[null,null,null,null,null,null,null,null,null,null,"Fs 31"]
[null,null,null,null,null,null,null,null,null,null,"FS 32 "]
[null,null,null,null,null,null,null,null,null,null,"Fs 33 "]
[null,null,null,null,null,null,null,null,null,null,"G 103 Twin II"]
[null,null,null,null,null,null,null,null,null,null,"G 109B"]
[null,null,null,null,null,null,null,null,null,null,"G102 Astir "]
[null,null,null,null,null,null,null,null,null,null,"G102 Astir I "]
[null,null,null,null,null,null,null,null,null,null,"G102 Astir II "]
[null,null,null,null,null,null,null,null,null,null,"G102 Astir III "]
[null,null,null,null,null,null,null,null,null,null,"G102 Club Astir "]
[null,null,null,null,null,null,null,null,null,null,"G103 Twin Astir train rentrant "]
[null,null,null,null,null,null,null,null,null,null,"G103 Twin Astir Trainer tr"]
[null,null,null,null,null,null,null,null,null,null,"G103 Twin III 20m"]
[null,null,null,null,null,null,null,null,null,null,"G109"]
[null,null,null,null,null,null,null,null,null,null,"Geier"]
[null,null,null,null,null,null,null,null,null,null,"Genesis "]
[null,null,null,null,null,null,null,null,null,null,"Genesis 2 "]
[null,null,null,null,null,null,null,null,null,null,"Genesis 2 IGC "]
[null,null,null,null,null,null,null,null,null,null,"Glasflügel 304 "]
[null,null,null,null,null,null,null,null,null,null,"Glasflügel 304 17m "]
[null,null,null,null,null,null,null,null,null,null,"Glasflügel 304B "]
[null,null,null,null,null,null,null,null,null,null,"Glasflügel 304C "]
[null,null,null,null,null,null,null,null,null,null,"Glasflügel 604 24m "]
[null,null,null,null,null,null,null,null,null,null,"Glassflugel 304"]
[null,null,null,null,null,null,null,null,null,null,"Greif II"]
[null,null,null,null,null,null,null,null,null,null,"Grunau Baby"]
[null,null,null,null,null,null,null,null,null,null,"H 101 Salto"]
[null,null,null,null,null,null,null,null,null,null,"H 30"]
[null,null,null,null,null,null,null,null,null,null,"H 301 "]
[null,null,null,null,null,null,null,null,null,null,"H 301 IGC "]
[null,null,null,null,null,null,null,null,null,null,"H-101 Salto"]
[null,null,null,null,null,null,null,null,null,null,"H-36 Dimona"]
[null,null,null,null,null,null,null,null,null,null,"HK-36 Super Dimona"]
[null,null,null,null,null,null,null,null,null,null,"Hornet "]
[null,null,null,null,null,null,null,null,null,null,"Hornet C "]
[null,null,null,null,null,null,null,null,null,null,"Hornet WL "]
[null,null,null,null,null,null,null,null,null,null,"HPH 304 Shark "]
[null,null,null,null,null,null,null,null,null,null,"HPH 304 Shark "]
[null,null,null,null,null,null,null,null,null,null,"HPH 304 Twin Shark (800kg) "]
[null,null,null,null,null,null,null,null,null,null,"HPH 304 Twin Shark (850kg) "]
[null,null,null,null,null,null,null,null,null,null,"HPH 304C "]
[null,null,null,null,null,null,null,null,null,null,"HPH 304CZ 15m "]
[null,null,null,null,null,null,null,null,null,null,"IS 28 B2"]
[null,null,null,null,null,null,null,null,null,null,"IS 28 M"]
[null,null,null,null,null,null,null,null,null,null,"IS 29 D"]
[null,null,null,null,null,null,null,null,null,null,"Jantar 19m "]
[null,null,null,null,null,null,null,null,null,null,"Jantar 2 "]
[null,null,null,null,null,null,null,null,null,null,"Jantar 2b "]
[null,null,null,null,null,null,null,null,null,null,"Jantar Std "]
[null,null,null,null,null,null,null,null,null,null,"Jantar Std 2 "]
[null,null,null,null,null,null,null,null,null,null,"Jantar Std 2M "]
[null,null,null,null,null,null,null,null,null,null,"Jantar Std 3 "]
[null,null,null,null,null,null,null,null,null,null,"Janus A "]
[null,null,null,null,null,null,null,null,null,null,"Janus B "]
[null,null,null,null,null,null,null,null,null,null,"Janus C train fixe "]
[null,null,null,null,null,null,null,null,null,null,"Janus C train rentrant "]
[null,null,null,null,null,null,null,null,null,null,"JP 15/34"]
[null,null,null,null,null,null,null,null,null,null,"JP 15/36"]
[null,null,null,null,null,null,null,null,null,null,"JS 1A "]
[null,null,null,null,null,null,null,null,null,null,"JS 1B "]
[null,null,null,null,null,null,null,null,null,null,"JS 1B EVO "]
[null,null,null,null,null,null,null,null,null,null,"JS 1C 18m "]
[null,null,null,null,null,null,null,null,null,null,"JS 1C 18m EVO "]
[null,null,null,null,null,null,null,null,null,null,"JS 1C 21m "]
[null,null,null,null,null,null,null,null,null,null,"JS 1C Evo"]
[null,null,null,null,null,null,null,null,null,null,"JS 1C-21m"]
[null,null,null,null,null,null,null,null,null,null,"JS 3 15m "]
[null,null,null,null,null,null,null,null,null,null,"JS 3 18m"]
[null,null,null,null,null,null,null,null,null,null,"JS1"]
[null,null,null,null,null,null,null,null,null,null,"JS1 C"]
[null,null,null,null,null,null,null,null,null,null,"JS3"]
[null,null,null,null,null,null,null,null,null,null,"JS3 Jet"]
[null,null,null,null,null,null,null,null,null,null,"JS3 TJ"]
[null,null,null,null,null,null,null,null,null,null,"Ka 1"]
[null,null,null,null,null,null,null,null,null,null,"Ka 10"]
[null,null,null,null,null,null,null,null,null,null,"Ka 2"]
[null,null,null,null,null,null,null,null,null,null,"Ka 2B"]
[null,null,null,null,null,null,null,null,null,null,"Ka 3"]
[null,null,null,null,null,null,null,null,null,null,"Ka 4"]
[null,null,null,null,null,null,null,null,null,null,"Ka 6"]
[null,null,null,null,null,null,null,null,null,null,"Ka 6E"]
[null,null,null,null,null,null,null,null,null,null,"Ka 7"]
[null,null,null,null,null,null,null,null,null,null,"Ka 8"]
[null,null,null,null,null,null,null,null,null,null,"Kestrel 17m "]
[null,null,null,null,null,null,null,null,null,null,"Kestrel 19m "]
[null,null,null,null,null,null,null,null,null,null,"Kestrel 22m "]
[null,null,null,null,null,null,null,null,null,null,"Kranich II"]
[null,null,null,null,null,null,null,null,null,null,"Kranich III"]
[null,null,null,null,null,null,null,null,null,null,"L13 Blanik"]
[null,null,null,null,null,null,null,null,null,null,"L23 Super Blanik"]
[null,null,null,null,null,null,null,null,null,null,"L23 Super Blanik 18,2 m"]
[null,null,null,null,null,null,null,null,null,null,"LAK 12 "]
[null,null,null,null,null,null,null,null,null,null,"LAK 17A 15m "]
[null,null,null,null,null,null,null,null,null,null,"LAK 17A 18m "]
[null,null,null,null,null,null,null,null,null,null,"LAK 17B 15m "]
[null,null,null,null,null,null,null,null,null,null,"LAK 17B 18m "]
[null,null,null,null,null,null,null,null,null,null,"LAK 17B 21m "]
[null,null,null,null,null,null,null,null,null,null,"LAK 19 15m"]
[null,null,null,null,null,null,null,null,null,null,"LAK 19 18m "]
[null,null,null,null,null,null,null,null,null,null,"LAK 20 23m "]
[null,null,null,null,null,null,null,null,null,null,"LAK 20 26m "]
[null,null,null,null,null,null,null,null,null,null,"LAK-17A"]
[null,null,null,null,null,null,null,null,null,null,"Lambada UFM-13"]
[null,null,null,null,null,null,null,null,null,null,"Lambada UFM-15"]
[null,null,null,null,null,null,null,null,null,null,"LCF II"]
[null,null,null,null,null,null,null,null,null,null,"LF 20 18m "]
[null,null,null,null,null,null,null,null,null,null,"LF 20 20m "]
[null,null,null,null,null,null,null,null,null,null,"Libelle H201"]
[null,null,null,null,null,null,null,null,null,null,"LS 1 0"]
[null,null,null,null,null,null,null,null,null,null,"LS 1 0 train fixe"]
[null,null,null,null,null,null,null,null,null,null,"LS 10 18m "]
[null,null,null,null,null,null,null,null,null,null,"LS 11 "]
[null,null,null,null,null,null,null,null,null,null,"LS 1a"]
[null,null,null,null,null,null,null,null,null,null,"LS 1b"]
[null,null,null,null,null,null,null,null,null,null,"LS 1c"]
[null,null,null,null,null,null,null,null,null,null,"LS 1d"]
[null,null,null,null,null,null,null,null,null,null,"LS 1e "]
[null,null,null,null,null,null,null,null,null,null,"LS 1f "]
[null,null,null,null,null,null,null,null,null,null,"LS 2 "]
[null,null,null,null,null,null,null,null,null,null,"LS 3"]
[null,null,null,null,null,null,null,null,null,null,"LS 3 "]
[null,null,null,null,null,null,null,null,null,null,"LS 3 standard "]
[null,null,null,null,null,null,null,null,null,null,"LS 3-17 15m"]
[null,null,null,null,null,null,null,null,null,null,"LS 3-17 15m "]
[null,null,null,null,null,null,null,null,null,null,"LS 3a"]
[null,null,null,null,null,null,null,null,null,null,"LS 3a "]
[null,null,null,null,null,null,null,null,null,null,"LS 4"]
[null,null,null,null,null,null,null,null,null,null,"LS 4 WL"]
[null,null,null,null,null,null,null,null,null,null,"LS 4a"]
[null,null,null,null,null,null,null,null,null,null,"LS 4b"]
[null,null,null,null,null,null,null,null,null,null,"LS 5 "]
[null,null,null,null,null,null,null,null,null,null,"LS 6 15m"]
[null,null,null,null,null,null,null,null,null,null,"LS 6C 17,5m "]
[null,null,null,null,null,null,null,null,null,null,"LS 6C 18m "]
[null,null,null,null,null,null,null,null,null,null,"LS 7 "]
[null,null,null,null,null,null,null,null,null,null,"LS 7 WL "]
[null,null,null,null,null,null,null,null,null,null,"LS 8 15m "]
[null,null,null,null,null,null,null,null,null,null,"LS 8 18m "]
[null,null,null,null,null,null,null,null,null,null,"LS 9 "]
[null,null,null,null,null,null,null,null,null,null,"LS10 15m "]
[null,null,null,null,null,null,null,null,null,null,"LS6"]
[null,null,null,null,null,null,null,null,null,null,"LS6 17,5m"]
[null,null,null,null,null,null,null,null,null,null,"LS7"]
[null,null,null,null,null,null,null,null,null,null,"L-Spatz"]
[null,null,null,null,null,null,null,null,null,null,"Lunak LF107"]
[null,null,null,null,null,null,null,null,null,null,"M 200"]
[null,null,null,null,null,null,null,null,null,null,"M100 Mesange"]
[null,null,null,null,null,null,null,null,null,null,"M-25"]
[null,null,null,null,null,null,null,null,null,null,"Marianne"]
[null,null,null,null,null,null,null,null,null,null,"MDM-1 Fox"]
[null,null,null,null,null,null,null,null,null,null,"Milan"]
[null,null,null,null,null,null,null,null,null,null,"Mini LAK "]
[null,null,null,null,null,null,null,null,null,null,"Mini Nimbus "]
[null,null,null,null,null,null,null,null,null,null,"Minimoa"]
[null,null,null,null,null,null,null,null,null,null,"Mistral C"]
[null,null,null,null,null,null,null,null,null,null,"MOSQUITO"]
[null,null,null,null,null,null,null,null,null,null,"Mosquito 15m"]
[null,null,null,null,null,null,null,null,null,null,"Mosquito 17m "]
[null,null,null,null,null,null,null,null,null,null,"Mosquito A"]
[null,null,null,null,null,null,null,null,null,null,"Mosquito b 15m "]
[null,null,null,null,null,null,null,null,null,null,"Mü 22b"]
[null,null,null,null,null,null,null,null,null,null,"Mü 26 "]
[null,null,null,null,null,null,null,null,null,null,"Mü 27 "]
[null,null,null,null,null,null,null,null,null,null,"Mucha"]
[null,null,null,null,null,null,null,null,null,null,"Nimbus 2 "]
[null,null,null,null,null,null,null,null,null,null,"Nimbus 3 22,9m "]
[null,null,null,null,null,null,null,null,null,null,"Nimbus 3 24,6m "]
[null,null,null,null,null,null,null,null,null,null,"Nimbus 3 25,6m "]
[null,null,null,null,null,null,null,null,null,null,"Nimbus 3D 24,6m "]
[null,null,null,null,null,null,null,null,null,null,"Nimbus 3D 25,5m "]
[null,null,null,null,null,null,null,null,null,null,"Nimbus 4 (750kg) "]
[null,null,null,null,null,null,null,null,null,null,"Nimbus 4 (850kg) "]
[null,null,null,null,null,null,null,null,null,null,"Nimbus 4D (750kg) "]
[null,null,null,null,null,null,null,null,null,null,"Nimbus 4D (850kg) "]
[null,null,null,null,null,null,null,null,null,null,"NimEta "]
[null,null,null,null,null,null,null,null,null,null,"NimEta "]
[null,null,null,null,null,null,null,null,null,null,"Nord 2000"]
[null,null,null,null,null,null,null,null,null,null,"Olympia"]
[null,null,null,null,null,null,null,null,null,null,"Pajno V1/2"]
[null,null,null,null,null,null,null,null,null,null,"Pegase"]
[null,null,null,null,null,null,null,null,null,null,"Pégase C101A "]
[null,null,null,null,null,null,null,null,null,null,"Pégase C101AP "]
[null,null,null,null,null,null,null,null,null,null,"Pégase C101B "]
[null,null,null,null,null,null,null,null,null,null,"Pégase C101C "]
[null,null,null,null,null,null,null,null,null,null,"Pégase C101D "]
[null,null,null,null,null,null,null,null,null,null,"Pégase C101P "]
[null,null,null,null,null,null,null,null,null,null,"Pégase train fixe "]
[null,null,null,null,null,null,null,null,null,null,"Phoebus A"]
[null,null,null,null,null,null,null,null,null,null,"Phoebus B"]
[null,null,null,null,null,null,null,null,null,null,"Phoebus B3 "]
[null,null,null,null,null,null,null,null,null,null,"Phoebus C "]
[null,null,null,null,null,null,null,null,null,null,"Phoenix U15"]
[null,null,null,null,null,null,null,null,null,null,"Phönix"]
[null,null,null,null,null,null,null,null,null,null,"Piccolo"]
[null,null,null,null,null,null,null,null,null,null,"PIK 16 Vasama"]
[null,null,null,null,null,null,null,null,null,null,"PIK 20 17m "]
[null,null,null,null,null,null,null,null,null,null,"PIK 20A "]
[null,null,null,null,null,null,null,null,null,null,"PIK 20B "]
[null,null,null,null,null,null,null,null,null,null,"PIK 20D "]
[null,null,null,null,null,null,null,null,null,null,"PIK 20E "]
[null,null,null,null,null,null,null,null,null,null,"PIK 30 15m "]
[null,null,null,null,null,null,null,null,null,null,"Pilatus B4 train fixe"]
[null,null,null,null,null,null,null,null,null,null,"Pilatus B4 train rentrant"]
[null,null,null,null,null,null,null,null,null,null,"Puchatek"]
[null,null,null,null,null,null,null,null,null,null,"PW 5"]
[null,null,null,null,null,null,null,null,null,null,"PW 6"]
[null,null,null,null,null,null,null,null,null,null,"Quintus "]
[null,null,null,null,null,null,null,null,null,null,"RF 10"]
[null,null,null,null,null,null,null,null,null,null,"RF 4"]
[null,null,null,null,null,null,null,null,null,null,"RF 5"]
[null,null,null,null,null,null,null,null,null,null,"RF 5 B"]
[null,null,null,null,null,null,null,null,null,null,"RF 9"]
[null,null,null,null,null,null,null,null,null,null,"Rhönbussar"]
[null,null,null,null,null,null,null,null,null,null,"Rhönlerche"]
[null,null,null,null,null,null,null,null,null,null,"Rhönsperber"]
[null,null,null,null,null,null,null,null,null,null,"Sagitta"]
[null,null,null,null,null,null,null,null,null,null,"Salto 15,5m"]
[null,null,null,null,null,null,null,null,null,null,"Samburo AVo68-R"]
[null,null,null,null,null,null,null,null,null,null,"SB 10 "]
[null,null,null,null,null,null,null,null,null,null,"SB 11 "]
[null,null,null,null,null,null,null,null,null,null,"SB 12 "]
[null,null,null,null,null,null,null,null,null,null,"SB 13 "]
[null,null,null,null,null,null,null,null,null,null,"SB 13 "]
[null,null,null,null,null,null,null,null,null,null,"SB 14 "]
[null,null,null,null,null,null,null,null,null,null,"SB 14 "]
[null,null,null,null,null,null,null,null,null,null,"SB 5a"]
[null,null,null,null,null,null,null,null,null,null,"SB 5b"]
[null,null,null,null,null,null,null,null,null,null,"SB 5c"]
[null,null,null,null,null,null,null,null,null,null,"SB 5e"]
[null,null,null,null,null,null,null,null,null,null,"SB 7 "]
[null,null,null,null,null,null,null,null,null,null,"SB 8 "]
[null,null,null,null,null,null,null,null,null,null,"SF 25B Falke"]
[null,null,null,null,null,null,null,null,null,null,"SF 26"]
[null,null,null,null,null,null,null,null,null,null,"SF 27A"]
[null,null,null,null,null,null,null,null,null,null,"SF 27B"]
[null,null,null,null,null,null,null,null,null,null,"SF 28A"]
[null,null,null,null,null,null,null,null,null,null,"SF 30"]
[null,null,null,null,null,null,null,null,null,null,"SF 34 train fixe"]
[null,null,null,null,null,null,null,null,null,null,"SF 34 train rentrant"]
[null,null,null,null,null,null,null,null,null,null,"SF-25 E"]
[null,null,null,null,null,null,null,null,null,null,"SF-25C 2000"]
[null,null,null,null,null,null,null,null,null,null,"SF-25C-S Falke 76"]
[null,null,null,null,null,null,null,null,null,null,"SF28 A"]
[null,null,null,null,null,null,null,null,null,null,"SFS 31"]
[null,null,null,null,null,null,null,null,null,null,"SHK"]
[null,null,null,null,null,null,null,null,null,null,"SIE 3"]
[null,null,null,null,null,null,null,null,null,null,"Silence E 75"]
[null,null,null,null,null,null,null,null,null,null,"Silent"]
[null,null,null,null,null,null,null,null,null,null,"Silent 2"]
[null,null,null,null,null,null,null,null,null,null,"Silent 2 Electro"]
[null,null,null,null,null,null,null,null,null,null,"Silent 2 Targa"]
[null,null,null,null,null,null,null,null,null,null,"Silent Club"]
[null,null,null,null,null,null,null,null,null,null,"Sinus"]
[null,null,null,null,null,null,null,null,null,null,"Solo L33"]
[null,null,null,null,null,null,null,null,null,null,"Song"]
[null,null,null,null,null,null,null,null,null,null,"SparrowHawk"]
[null,null,null,null,null,null,null,null,null,null,"SparrowHawk R 13,5m"]
[null,null,null,null,null,null,null,null,null,null,"Spatz 13m"]
[null,null,null,null,null,null,null,null,null,null,"Specht"]
[null,null,null,null,null,null,null,null,null,null,"Speed Astir II "]
[null,null,null,null,null,null,null,null,null,null,"Speed Astir IIb "]
[null,null,null,null,null,null,null,null,null,null,"Std Austria"]
[null,null,null,null,null,null,null,null,null,null,"Std Austria SH"]
[null,null,null,null,null,null,null,null,null,null,"Std Austria SH1"]
[null,null,null,null,null,null,null,null,null,null,"Std Cirrus"]
[null,null,null,null,null,null,null,null,null,null,"Std Cirrus B 15m"]
[null,null,null,null,null,null,null,null,null,null,"Std Cirrus B 16m "]
[null,null,null,null,null,null,null,null,null,null,"Std Cirrus CS11-75G"]
[null,null,null,null,null,null,null,null,null,null,"Std Cirrus CS11-75L"]
[null,null,null,null,null,null,null,null,null,null,"Std Cirrus Top"]
[null,null,null,null,null,null,null,null,null,null,"Std Cirrus WL "]
[null,null,null,null,null,null,null,null,null,null,"Std Libelle"]
[null,null,null,null,null,null,null,null,null,null,"Std Libelle 17m "]
[null,null,null,null,null,null,null,null,null,null,"Std Libelle 201B"]
[null,null,null,null,null,null,null,null,null,null,"Std Libelle 201B"]
[null,null,null,null,null,null,null,null,null,null,"Std Libelle 202"]
[null,null,null,null,null,null,null,null,null,null,"Std Libelle 203"]
[null,null,null,null,null,null,null,null,null,null,"Stemme S10 "]
[null,null,null,null,null,null,null,null,null,null,"Stemme S12 "]
[null,null,null,null,null,null,null,null,null,null,"Swift S-1"]
[null,null,null,null,null,null,null,null,null,null,"SZD 22 Mucha Std"]
[null,null,null,null,null,null,null,null,null,null,"SZD 30 Pirat"]
[null,null,null,null,null,null,null,null,null,null,"SZD 48 3M "]
[null,null,null,null,null,null,null,null,null,null,"SZD 48 3M1 Brawo "]
[null,null,null,null,null,null,null,null,null,null,"SZD 50 Puchacz"]
[null,null,null,null,null,null,null,null,null,null,"SZD 51 Junior"]
[null,null,null,null,null,null,null,null,null,null,"SZD 54 Perkoz 17.5m "]
[null,null,null,null,null,null,null,null,null,null,"SZD 54 Perkoz 20m "]
[null,null,null,null,null,null,null,null,null,null,"SZD 55 "]
[null,null,null,null,null,null,null,null,null,null,"SZD 59 "]
[null,null,null,null,null,null,null,null,null,null,"SZD 59 WL "]
[null,null,null,null,null,null,null,null,null,null,"SZD-45 A"]
[null,null,null,null,null,null,null,null,null,null,"T 21"]
[null,null,null,null,null,null,null,null,null,null,"T 31"]
[null,null,null,null,null,null,null,null,null,null,"Taifun 17E"]
[null,null,null,null,null,null,null,null,null,null,"Taurus "]
[null,null,null,null,null,null,null,null,null,null,"Topaze"]
[null,null,null,null,null,null,null,null,null,null,"TST 10 Atlas"]
[null,null,null,null,null,null,null,null,null,null,"TST 14 "]
[null,null,null,null,null,null,null,null,null,null,"TST 3"]
[null,null,null,null,null,null,null,null,null,null,"Ventus 15m "]
[null,null,null,null,null,null,null,null,null,null,"Ventus 2a "]
[null,null,null,null,null,null,null,null,null,null,"Ventus 2ax"]
[null,null,null,null,null,null,null,null,null,null,"Ventus 2b"]
[null,null,null,null,null,null,null,null,null,null,"Ventus 2bx"]
[null,null,null,null,null,null,null,null,null,null,"Ventus 2c 15m"]
[null,null,null,null,null,null,null,null,null,null,"Ventus 2c 18m "]
[null,null,null,null,null,null,null,null,null,null,"Ventus 2cx 15m"]
[null,null,null,null,null,null,null,null,null,null,"Ventus 2cx 18m "]
[null,null,null,null,null,null,null,null,null,null,"Ventus 2cxa 15m"]
[null,null,null,null,null,null,null,null,null,null,"Ventus 2cxa 18m "]
[null,null,null,null,null,null,null,null,null,null,"VENTUS 2cxM"]
[null,null,null,null,null,null,null,null,null,null,"Ventus 2cxt"]
[null,null,null,null,null,null,null,null,null,null,"Ventus 3 15m "]
[null,null,null,null,null,null,null,null,null,null,"Ventus 3 18m "]
[null,null,null,null,null,null,null,null,null,null,"Ventus 3 TS"]
[null,null,null,null,null,null,null,null,null,null,"Ventus B 16,6m "]
[null,null,null,null,null,null,null,null,null,null,"Ventus C 17,6m "]
[null,null,null,null,null,null,null,null,null,null,"VSO-10"]
[null,null,null,null,null,null,null,null,null,null,"VT-116 Orlic II"]
[null,null,null,null,null,null,null,null,null,null,"VT-16 Orlic"]
[null,null,null,null,null,null,null,null,null,null,"WA 20 Javelot"]
[null,null,null,null,null,null,null,null,null,null,"WA 21 Javelot II"]
[null,null,null,null,null,null,null,null,null,null,"WA 22 Super Javelot"]
[null,null,null,null,null,null,null,null,null,null,"WA 26 Squale"]
[null,null,null,null,null,null,null,null,null,null,"WA 26CM Squale Marfa"]
[null,null,null,null,null,null,null,null,null,null,"WA 28 Espadon tr"]
[null,null,null,null,null,null,null,null,null,null,"WA 28 Espadon train fixe"]
[null,null,null,null,null,null,null,null,null,null,"Weihe 50"]
[null,null,null,null,null,null,null,null,null,null,"Zugvogel I"]
[null,null,null,null,null,null,null,null,null,null,"Zugvogel II"]
[null,null,null,null,null,null,null,null,null,null,"Zugvogel IIIa"]
[null,null,null,null,null,null,null,null,null,null,"Zugvogel IIIb"]
[null,null,null,null,null,null,null,null,null,null,"Zugvogel IV"]

{"sheet":"ListeDesTextbox","index":3,"n_rows":144,"n_cols":7,"rows_kept":144,"cut":false,"hidden":true,"merged":[]}
[]
[]
[null,null,null,null,null,null,"Arr(0) = NID"]
[null,null,null,"tb1","Horodateur",null,"    Arr(1) = tb1"]
[null,null,null,"tb2","Mail ",null,"    Arr(2) = tb2"]
[null,null,null,"    On Error Resume Next",null,null,"    On Error Resume Next"]
[null,null,null,"CmbCivilite","tb3",null,"    Arr(3) = CmbCivilite 'tb3 '"]
[null,null,null,"tb4","Nom",null,"    Arr(4) = tb4 'Nom pilote"]
[null,null,null,"tb5","Prènom",null,"    Arr(5) = tb5"]
[null,null,null,"tb6","Date Né + calendrier",null,"    Arr(6) = CLng(CDate(tb6)) 'tb6 date né pilote***Format(Date, \"dd/mm/yyyy\"))"]
[null,null,null,"tb7","Age",null,"    Arr(7) = tb7"]
[null,null,null,"tb8","Adresse complette ",null,"    Arr(8) = tb8"]
[null,null,null,"tb9","CP",null,"    Arr(9) = tb9"]
[null,null,null,"tb10","Ville",null,"    Arr(10) = tb10"]
[null,null,null,"CmbPaysINS","Pays   associes avec Combobox (tb11 supprimer)",null,"    Arr(11) = Me.CmbPaysINS 'tb11"]
[null,null,null,"tb12","Autres mail",null,"    Arr(12) = tb12"]
[null,null,null,"tb13","Invités",null,"    Arr(13) = CmbInvite"]
[null,null,null,"tb14","Tel1",null,"    Arr(14) = tb14"]
[null,null,null,"tb15","Tel2",null,"    Arr(15) = tb15"]
[null,null,null,"ComboClub","Club   associes avec Combobox (tb16 supprimer)",null,"    Arr(16) = ComboClub"]
[null,null,null,"CmbCat","Catégorie  associes avec Combobox  (tb17 supprimer)",null,"    Arr(17) = CmbCat"]
[null,null,null,"tb18","Ranking ID",null,"    Arr(18) = tb18"]
[null,null,null,"tb19","Ranking Position",null,"    Arr(19) = tb19"]
[null,null,null,"tb20","Code membre  FFVP",null,"    Arr(20) = tb20"]
[null,null,null,"tb21","N° license FFVP",null,"    Arr(21) = tb21"]
[null,null,null,"tb22","GIVAV",null,"    Arr(22) = tb22"]
[null,"CmbOuiP",null,"tb23","Profession",null,"    Arr(23) = tb23"]
[null,null,null,"tb24","Medical  associes avec Combobox",null,"    Arr(24) = CmbOuiP 'tb24"]
[null,null,null,"tb25","Delivré le  + calendrier",null,"    Arr(25) = CLng(CDate(tb25)) 'tb25"]
[null,null,null,"tb26","Finde validité + calendrier",null,"    Arr(26) = CLng(CDate(tb26)) 'tb26"]
[null,null,null,"tb27","Licence FAI",null,"    Arr(27) = tb27"]
[null,null,null,"tb28","N° RC pilote",null,"    Arr(28) = tb28"]
[null,null,null,"tb29","Validité RC pilte + calendrier",null,"    Arr(29) = CLng(CDate(tb29)) 'tb29"]
[null,null,null,"CmbParentale","tb30",null,"    Arr(30) = CmbParentale 'tb30"]
[null,null,null,"tb31","Nom de l'autorisation parentale",null,"    Arr(31) = tb31"]
[null,null,null,"tb32","Date arrivée + calendrier",null,"    Arr(32) = CLng(CDate(tb32)) 'tb32"]
[null,null,null,"tb33","Commentaires pilote",null,"    Arr(33) = tb33"]
[null,null,"AI",null,null,null,"    ' 2 colonnes de vide"]
[null,null,"AJ",null," 2 colonnes de vide",null,"    ' 2 colonnes de vide"]
[null,null,null,"CmbCiviliteCopi","tb36",null,"    Arr(36) = CmbCiviliteCopi 'tb36"]
[null,null,null,"tb37","Nom copilote",null,"    Arr(37) = UCase(tb37)"]
[null,null,null,"tb38",null,null,"    Arr(38) = tb38"]
[null,null,null,"tb39",null,null,"    Arr(39) = CLng(CDate(tb39)) 'tb39"]
[null,null,null,"tb40",null,null,"    Arr(40) = tb40"]
[null,null,null,"tb41",null,null,"    Arr(41) = tb41"]
[null,null,null,"tb42",null,null,"    Arr(42) = tb42"]
[null,null,null,"tb43",null,null,"    Arr(43) = tb43"]
[null,null,null,"CmbClubCopi","tb44",null,"    Arr(44) = CmbClubCopi 'tb44"]
[null,null,null,"tb45",null,null,"    Arr(45) = tb45"]
[null,null,null,"tb46",null,null,"    Arr(46) = tb46"]
[null,null,null,"tb47",null,null,"    Arr(47) = tb47"]
[null,null,null,"tb48",null,null,"    Arr(48) = tb48"]
[null,null,null,"tb49",null,null,"    Arr(49) = tb49"]
[null,null,null,"tb50",null,null,"    Arr(50) = tb50"]
[null,null,null,"CmbCertifCopi","tb51",null,"    Arr(51) = CmbCertifCopi 'tb51"]
[null,null,null,"tb52",null,null,"    Arr(52) = CLng(CDate(tb52)) 'tb52"]
[null,null,null,"tb53",null,null,"    Arr(53) = CLng(CDate(tb53)) 'tb53"]
[null,null,null,"tb54","Commentaires copilote",null,"    Arr(54) = tb54"]
[null,null,"BD",null,null,null,"  ' 2 colonnes de vide"]
[null,null,"BE",null," 2 colonnes de vide",null,"  ' 2 colonnes de vide"]
[null,null,null,"CmbCivDep","tb55",null,"    Arr(57) = CmbCivDep 'tb55"]
[null,null,null,"tb56",null,null,"    Arr(58) = UCase(tb56)"]
[null,null,null,"tb57",null,null,"    Arr(59) = tb57"]
[null,null,null,"tb58",null,null,"    Arr(60) = tb58"]
[null,null,"BJ",null,null,null,"  ' 2 colonnes de vide"]
[null,null,"BK",null,null,null,"  ' 2 colonnes de vide"]
[null,null,null,"CmbCivPer","tb59",null,"    Arr(63) = CmbCivPer 'tb59"]
[null,null,null,"tb60",null,null,"    Arr(64) = UCase(tb60)"]
[null,null,null,"tb61",null,null,"    Arr(65) = tb61"]
[null,null,null,"tb62","Tel contact",null,"    Arr(66) = tb62"]
[null,null,"BP",null," 2 colonnes de vide",null,"  ' 2 colonnes de vide"]
[null,null,"BQ",null,null,null,"  ' 2 colonnes de vide"]
[null,null,null,"CmbTypePL","tb63 nomplaneur",null,"    Arr(69) = CmbTypePL"]
[null,null,null,"tb64","Immat planeur",null,"    Arr(70) = tb64"]
[null,null,null,"tb65",null,null,"    Arr(71) = tb65"]
[null,null,null,"tb66","Information venant des inscriptions Catégorie planeur",null,"    Arr(72) = tb66"]
[null,null,null,"tb67",null,null,"    Arr(73) = tb67"]
[null,null,null,"tb68",null,null,"    Arr(74) = CmbTrans '"]
[null,null,null,"CmbEnvol","tb69 supprimer ",null,"    Arr(75) = CmbEnvol '"]
[null,null,null,"CmbTurbo","tb70 supprimer ",null,"    Arr(76) = CmbTurbo '"]
[null,null,null,"tb71",null,null,"    Arr(77) = tb71"]
[null,null,null,"tb72",null,null,"    Arr(78) = UCase(tb72.Text) 'tb72"]
[null,null,null,"tb73",null,null,"    Arr(79) = tb73"]
[null,null,null,"tb74","Planeur",null,"    Arr(80) = tb74"]
[null,null,null,"CmbControle","tb75",null,"    Arr(81) = CmbControle 'tb75"]
[null,null,null,"CmbControleur","tb76  supprimer ",null,"    Arr(82) = CmbControleur '76"]
[null,null,null,"CmbCable","tb77",null,"    Arr(83) = CmbCable '77"]
[null,null,null,"CmbCbord","tb78",null,"    Arr(84) = CmbCbord '78"]
[null,null,null,"CmbPese","tb79",null,"    Arr(85) = CmbPese '79"]
[null,null,null,"CmbMvol","tb80",null,"    Arr(86) = CmbMvol '80"]
[null,null,null,"CmbProprio","tb81",null,"    Arr(87) = CmbProprio '81"]
[null,null,null,"tb82",null,null,"    Arr(88) = tb82"]
[null,null,null,"tb83",null,null,"    Arr(89) = tb83"]
[null,null,null,"tb84","Commentaires planeurs",null,"    Arr(90) = tb84"]
[null,null,"CN",null,null,null,"  ' 2 colonnes de vide"]
[null,null,"CO",null," 2 colonnes de vide",null,"  ' 2 colonnes de vide"]
[null,null,null,"tb85","Montant inscription",null,"    Arr(93) = tb85"]
[null,null,null,"tb86",null,null,"    Arr(94) = CLng(CDate(tb86)) 'tb86"]
[null,null,null,"CmbCamp","tb87",null,"    Arr(95) = CmbCamp 'tb87"]
[null,null,null,"tb88",null,null,"    Arr(96) = tb88"]
[null,null,null,"tb89",null,null,"    Arr(97) = CLng(CDate(tb89)) 'tb89"]
[null,null,null,"CmbCamping","tb90",null,"    Arr(98) = CmbCamping 'tb90"]
[null,null,null,"tb91",null,null,"    Arr(99) = tb91"]
[null,null,null,"tb92",null,null,"    Arr(100) = tb92"]
[null,null,null,"tb93",null,null,"    Arr(101) = CLng(CDate(tb93)) 'tb93"]
[null,null,null,"CmbAcc","tb94",null,"    Arr(102) = tb94"]
[null,null,null,"tb95",null,null,"    Arr(103) = tb95"]
[null,null,null,"tb96",null,null,"    Arr(104) = tb96"]
[null,null,null,"tb97",null,null,"    Arr(105) = CLng(CDate(tb97)) 'tb97"]
[null,null,null,"CmbAcc2","tb98",null,"    Arr(106) = CmbAcc2 'tb98"]
[null,null,null,"tb99",null,null,"    Arr(107) = tb99"]
[null,null,null,"tb100",null,null,"    Arr(108) = tb100"]
[null,null,null,"tb101",null,null,"    Arr(109) = tb101"]
[null,null,null,"CmbBanque","tb102",null,"    Arr(110) = CmbBanque 'tb102"]
[null,null,null,"tb103",null,null,"    Arr(111) = tb103"]
[null,null,null,"ComboReste","tb104",null,"    Arr(112) = ComboReste 'tb104"]
[null,null,null,"tb105","Commentaires compta",null,"    Arr(113) = tb105"]
[null,null,"DK",null," 2 colonnes de vide",null,"' 2 colonnes de vide"]
[null,null,"DL",null,null,null,"' 2 colonnes de vide"]
[null,null,null,"tb106",null,null,"    Arr(116) = tb106                   'complement police"]
[null,null,null,"tb107",null,null,"    Arr(117) = CLng(CDate(tb107))      'tb107 ' complement police"]
[null,null,null,"tb108",null,null,"    Arr(118) = tb108                   'complement police"]
[null,null,null,"tb109",null,null,"    Arr(119) = CLng(CDate(tb109))      'tb109 ' 'complement police"]
[null,null,null,"tb110",null,null,"    Arr(120) = tb110                   'complement police"]
[null,null,null,"tb111",null,null,"    Arr(121) = CLng(CDate(tb111))      'tb111 ' 'complement police"]
[null,null,null,"tb112",null,null,"    Arr(122) = tb112                   'complement police"]
[null,null,null,"tb113",null,null,"    Arr(123) = tb113                   'complement police"]
[null,null,null,"tb114",null,null,"    Arr(124) = CLng(CDate(tb114))      'tb114 ' 'complement police"]
[null,null,"UV",null,null,null,"' 2 colonnes de vide"]
[null,null,"UW",null," 2 colonnes de vide",null,"' 2 colonnes de vide"]
[null,null,null,"CmbTest","tb115",null,"    Arr(127) = CmbTest                 'tb115 'Covid"]
[null,null,null,"tb116","'Covid",null,"    Arr(128) = CLng(CDate(tb116))      'tb116 'Covid"]
[null,null,null,"CmbQues","tb117",null,"    Arr(129) = CmbQues                 'tb117 'Covid"]
[null,null,null,"tb118","'Covid",null,"    Arr(130) = CLng(CDate(tb118))      'tb118 ''Covid"]
[null,null,null,"CmbConfirme","tb119",null,"    Arr(131) = CmbConfirme             'tb119 'Covid"]
[null,null,"EC",null,"' 1 colonnes de vide",null,"' 1 colonnes de vide"]
[null,null,null,"tb120",null,null,"    Arr(133) = tb120"]
[null,null,null,"tb121",null,null,"    Arr(134) = tb121"]
[null,null,null,"tb122",null,null,"    Arr(135) = tb122"]
[null,null,null,"tb123",null,null,"    Arr(136) = tb123"]
[null,null,null,"tb124",null,null,"    Arr(137) = tb124"]
[null,null,null,"tb125",null,null,"    Arr(138) = tb125"]
[null,null,null,"ComboGoogleForm","tb126",null,"    Arr(139) = ComboGoogleForm         'tb126"]
[null,null,null,"tb127","'Commentaires informations diverses",null,"    Arr(140) = tb127                   'Commentaires informations diverses"]

{"sheet":"Parametres111","index":4,"n_rows":162,"n_cols":39,"rows_kept":162,"cut":false,"hidden":true,"merged":[[29,29,29,31],[29,33,29,36],[2,28,2,35],[7,30,7,31],[9,30,9,33],[11,30,11,33],[12,30,12,33],[4,28,4,29],[13,28,13,29],[13,30,13,31],[27,29,27,31],[27,33,27,36],[28,29,28,31],[28,33,28,36],[17,29,17,32],[32,29,32,31],[32,33,32,36],[33,29,33,31],[33,33,33,36],[15,28,15,35],[22,28,22,35],[24,29,24,31],[24,33,24,36],[25,29,25,31],[25,33,25,36],[31,29,31,31],[31,33,31,36],[26,29,26,31],[26,33,26,36],[30,29,30,31],[30,33,30,36],[34,29,34,31],[34,33,34,36],[35,29,35,31],[35,33,35,36],[36,29,36,31],[36,33,36,36],[40,29,40,31],[37,29,37,31],[37,33,37,36],[38,29,38,31],[38,33,38,36],[39,29,39,31],[39,33,39,36]]}
[]
[null,null,null,null,null,null,null,null,null,null,null,null,null,null,null,null,null,null,null,null,null,null,"Pour les sauvegardes dans dossiers respectif"]
["Civilité",null,"Catégorie",null,"Club",null,"Invité ou …",null,"Oui/Non",null,"Nom Planeur",null,null,null,"Nom Contôleur",null,"banque",null,"N° Factures",null,"Liste des dossiers ",null,"Saisir le Nom du Dossier de la compétion dans la liste déroulante en  (U4)",null,"Nom","Montant"]
["Mr",null,"15 mètres",null,"AC Auzainvilliers Plaine des Vosges",null,"---",null,"Oui",null,"tbd",null,null,null,"---",null,"---",null,1,null,"BUNO-2023",null,"MATRICE--2023",null,"Inscription",270]
["Mme",null,"18 mètres",null,"AC Espoir Aéronautique de Sarreguemines",null,"Sélectionnés",null,"Non",null,"Arcus",null,null,null,"Jean claude Ferdinand",null,"Banque populaire",null,null,null,"MARMANDE-2023",null,"REGROUPEMENT DES Sauvegardes DGAC , FACTURES , INSCRIPTIONS",null,"Tentes",40]
["Melle",null,"20 mètres",null,"Aéro Club Albert Mangeot",null,"Invités - Hors concours",null,null,null,"Arcus 2 T",null,null,null,"Pascal Lachaise",null,"Banque Postale",null,"N° DGAC",null,"PERIGUEUX-2022",null,{"$f":"CONCATENATE(\"D:\\Competitions Vol a Voile\\\",$W$4,\"\\GESTION-DES-CONCURENTS\\REGROUPEMENT-DGAC-FAC-INSCRIP\\\")","v":"D:\\Competitions Vol a Voile\\MATRICE--2023\\GESTION-DES-CONCURENTS\\REGROUPEMENT-DGAC-FAC-INSCRIP\\"},null,"Camping/car",40]
[null,null,"Standard",null,"Aéro Club Alpin",null,"Listes d'attente (Sélectionnés)",null,null,null,"Arcus M",null,null,null,"Daniel Barbaza",null,"BCI",null,2,null,"RION-des-LANDES-23",null,"Sauvegarde des logements Pilotes et leurs Arrivées"]
[null,null,"Club",null,"Aéro Club Blois-Vendôme",null,"Listes d'attente (Invités - Hors concours)",null,null,null,"Arcus20-T",null,null,null,"Regis Kuntz",null,"Caisse d'Epargne",null,null,null,"AUCH-2023",null,{"$f":"CONCATENATE(\"D:\\Competitions Vol a Voile\\\",$W$4,\"\\GESTION-DES-CONCURENTS\\LOGEMENTS PILOTES & ARRIVEE\\\")","v":"D:\\Competitions Vol a Voile\\MATRICE--2023\\GESTION-DES-CONCURENTS\\LOGEMENTS PILOTES & ARRIVEE\\"}]
[null,null,"Libre",null,"Aéro Club Chambley",null,null,null,"Comfirme",null,"AS33 ",null,null,null,"Joël PASCAUD",null,"Crédit Agricole",null,"N° Inscription",null,"MATRICE--2023",null,"Sauvegardes toutes pages en PDF"]
["Pays",null,"Mondiale (world class)",null,"Aéro Club Charentais",null,null,null,"--",null,"AS33 Es",null,null,null,null,null,"Crédit industriel et commercial",null,1,null,"COULOUMIER-23",null,{"$f":"CONCATENATE(\"D:\\Competitions Vol a Voile\\\",$W$4,\"\\GESTION-DES-CONCURENTS\\SauvegardesDesPDF\\\")","v":"D:\\Competitions Vol a Voile\\MATRICE--2023\\GESTION-DES-CONCURENTS\\SauvegardesDesPDF\\"},null,null,null,null,null,null,null,"Dates et Durée effective :"]
["Andorra",null,null,null,"Aéro Club d'Aire sur l'Adour",null,"Câble  remorquage",null,"Comfirme",null,"AS33Es",null,null,null,null,null,"Crédit lyonais",null,null,null,null,null,"Dossier LISTE DES FLARM"]
["Belarus",null,null,null,"Aéro Club de Blainville",null,"tbd",null,null,null,"ASG 29 Es",null,null,null,null,null,"Credit Mutuel",null,null,null,null,null,{"$f":"CONCATENATE(\"D:\\Competitions Vol a Voile\\\",$W$4,\"\\GESTION-DES-CONCURENTS\\Liste-Flarm-IGC\\\")","v":"D:\\Competitions Vol a Voile\\MATRICE--2023\\GESTION-DES-CONCURENTS\\Liste-Flarm-IGC\\"},null,null,null,null,null,null,"Premier jour",{"$f":"$AD$25","v":"2022-07-17"}]
["Belgium",null,null,null,"Aéro Club de Brioude",null,"Je n'ai pas de câble",null,null,null,"ASG29",null,null,null,null,null,"HSBC",null,null,null,null,null,"Dossier LISTE DES DEPAN-COPILOTES-AUTONOME",null,null,null,null,null,null,"Dernier jour",{"$f":"$AD$41","v":"2022-07-23"}]
["Bulgaria",null,null,null,"Aéro Club de Chauvigny",null,"Je m'engage à fournir un câble",null,null,null,"ASH 25 (750 kg)",null,null,null,null,null,"HSBC londres",null,null,null,null,null,{"$f":"CONCATENATE(\"D:\\Competitions Vol a Voile\\\",$W$4,\"\\GESTION-DES-CONCURENTS\\LISTE-PILOTES-DEPAN-COPI-AUTONOME\\\")","v":"D:\\Competitions Vol a Voile\\MATRICE--2023\\GESTION-DES-CONCURENTS\\LISTE-PILOTES-DEPAN-COPI-AUTONOME\\"},null,null,null,null,null,"Nombre de jours :",null,{"$f":"$AD$42","v":7}]
["Czech Republic",null,null,null,"Aéro Club de l'Ariège",null,null,null,"DispositifEnvol",null,"ASH 25 25.6m (750 kg)",null,null,null,null,null,"Validé",null,null,null,null,null,"BILAN COMPTA"]
["Denmark",null,null,null,"Aéro Club de l'Est",null,null,null,"tbd",null,"ASH 25 26M",null,null,null,null,null,null,null,null,null,null,null,{"$f":"CONCATENATE(\"D:\\Competitions Vol a Voile\\\",$W$4,\"\\GESTION-DES-CONCURENTS\\Bilan-Compta\\\")","v":"D:\\Competitions Vol a Voile\\MATRICE--2023\\GESTION-DES-CONCURENTS\\Bilan-Compta\\"}]
["Finland",null,null,null,"Aéro Club de Luchon",null,null,null,"Non",null,"ASH30 Mi",null,null,null,null,null,null,null,null,null,null,null,"Dossier fiche police"]
["France",null,"type",null,"Aéro Club de Morestel",null,"Appareil",null,"Autonome",null,"ASH31-21m",null,null,null,null,null,null,null,null,null,null,null,{"$f":"CONCATENATE(\"D:\\Competitions Vol a Voile\\\",$W$4,\"\\GESTION-DES-CONCURENTS\\FICHES-POLICE\\\")","v":"D:\\Competitions Vol a Voile\\MATRICE--2023\\GESTION-DES-CONCURENTS\\FICHES-POLICE\\"},null,null,null,null,null,"Date du jour",{"$f":"NOW()","v":"2024-06-28T13:56:01.190"}]
["Germany",null,"Espéces",null,"Aéro Club de Narbonne",null,"---",null,"Turbo",null,"ASW20F",null,null,null,null,null,null,null,null,null,null,null,"Sauvegarde Classeur"]
["Great Britain",null,"Chèque",null,"Aéro Club de Picardie-Amiens Métropole",null,"1-Propriétaire",null,"Turbine",null,"ASW27",null,null,null,null,null,null,null,null,null,null,null,{"$f":"CONCATENATE(\"D:\\Competitions Vol a Voile\\\",$W$4,\"\\GESTION-DES-CONCURENTS\\SauvegardeClasseur\\\")","v":"D:\\Competitions Vol a Voile\\MATRICE--2023\\GESTION-DES-CONCURENTS\\SauvegardeClasseur\\"}]
["Hungary",null,"Virement",null,"Aéro Club de Sologne",null,"2-Locataire",null,"Electrique",null,"C101A pégase"]
["Ireland",null,"Virement Internationnal",null,"Aéro Club Dinan",null,"3-Exploitant",null,null,null,"Discus 2a 15m"]
["Italy",null,"Compte pilote",null,"Aéro Club d'Issoudun",null,null,null,null,null,"Discus 2c",null,null,null,null,null,null,null,null,null,"Lieux compétition",null,"Nom compétition",null,null,null,null,null,"DUREE, DATES et LIEUX"]
["Lithuania",null,"Chèques Restaurant",null,"Aéro Club du Bas Armagnac",null,null,null,null,null,"Discus 2c FES",null,null,null,null,null,null,null,null,null,"Buno-2023",null,"Matrice participants 2023",null,null,null,null,null,"Nombre de jours",7,"1) Indiquer le nombre de jours prévu"]
["Luxembourg",null,null,null,"Aéro Club du Poitou",null,null,null,null,null,"Discus b",null,null,null,null,null,null,null,null,null,null,null,"BUNO--2023",null,null,null,null,null,"1er jour","2022-07-17",null,null,{"$f":"IF(AH26=\"\",\"\",\"Lieu :\")","v":"Lieu :"},"BUNO-BONEVEAU",null,null,null,{"$f":"IF(AH25=\"\",0,1)","v":1},"2) Indiquer la date au format xx/xx/xxxx et le lieu de l'evenement"]
["Netherlands",null,null,null,"Aéro Club Guil et Durance",null,"Quel-hébergement ","Prix",null,null,"Discus CS",null,null,null,null,null,null,null,null,null,null,null,null,null,null,null,null,null,"Jour 2",{"$f":"IF(AD24>1,AD25+1,\"\")","v":"2022-07-18"},null,null,{"$f":"IF(AH27=\"\",\"\",\"Lieu :\")","v":"Lieu :"},{"$f":"IF(AD26=\"\",\"\",AH25)","v":"BUNO-BONEVEAU"},null,null,null,1,{"$f":"IF(AH26=\"\",\"\",\"(Affichage automatique : ne modifier que si nécessaire)\")","v":"(Affichage automatique : ne modifier que si nécessaire)"}]
["Norway",null,null,null,"Aéro Club International de Sisteron",null,"Autres",null,null,null,"EB 29r",null,null,null,null,null,null,null,null,null,null,null,null,null,null,null,null,null,"Jour 3",{"$f":"IF(AD24>2,AD26+1,\"\")","v":"2022-07-19"},null,null,{"$f":"IF(AH27=\"\",\"\",\"Lieu :\")","v":"Lieu :"},"BUNO-BONEVEAU",null,null,null,1,"(Affichage automatique : ne modifier que si nécessaire)"]
["Poland",null,null,null,"Aéro Club Pierre Herbaud",null,"Camping car/ Van",40,null,null,"eb-29dr",null,null,null,null,null,null,null,null,null,null,null,null,null,null,null,null,null,"Jour 4",{"$f":"IF(AD24>3,AD27+1,\"\")","v":"2022-07-20"},null,null,"Lieu :","BUNO-BONEVEAU",null,null,null,1,"(Affichage automatique : ne modifier que si nécessaire)"]
["Portugal",null,"Reste en liste",null,"Aéro Club Sarrebourg Vol à Voile",null,"Caravane",40,null,null,"JS 1B Evo",null,null,null,null,null,null,null,null,null,null,null,null,null,null,null,null,null,"Jour 5",{"$f":"IF(AD24>4,AD28+1,\"\")","v":"2022-07-21"},null,null,"Lieu :","BUNO-BONEVEAU",null,null,null,1,{"$f":"IF(AH29=\"\",\"\",\"(Affichage automatique : ne modifier que si nécessaire)\")","v":"(Affichage automatique : ne modifier que si nécessaire)"}]
["Romania",null,"---",null,"Aéroclub d'Abbeville",null,"Gîte",null,null,null,"JS 1C Evo",null,null,null,null,null,null,null,null,null,null,null,null,null,null,null,null,null,"Jour 6",{"$f":"IF(AD24>5,AD29+1,\"\")","v":"2022-07-22"},null,null,"Lieu :","BUNO-BONEVEAU",null,null,null,1,"(Affichage automatique : ne modifier que si nécessaire)"]
["Serbia",null,"Reste en liste",null,"Aéroclub de l'Estuaire de la Seine",null,"Hotel",null,null,null,"JS1",null,null,null,null,null,null,null,null,null,null,null,null,null,null,null,null,null,"Jour 7",{"$f":"IF(AD24>6,AD30+1,\"\")","v":"2022-07-23"},null,null,"Lieu :","BUNO-BONEVEAU",null,null,null,1,"(Affichage automatique : ne modifier que si nécessaire)"]
["Slovakia",null,"Désistement",null,"Aéroclub des Goélands",null,"Tente",40,null,null,"JS1 C",null,null,null,null,null,null,null,null,null,null,null,null,null,null,null,null,null,"Jour 8",{"$f":"IF(AD24>7,AD31+1,\"\")","v":""},null,null,"","",null,null,null,0,""]
["Slovenia",null,"A remboursé",null,"Aéroclub du Lys",null,null,null,null,null,"JS1C ",null,null,null,null,null,null,null,null,null,null,null,null,null,null,null,null,null,"Jour 9",{"$f":"IF(AD24>8,AD32+1,\"\")","v":""},null,null,"",{"$f":"IF(AD33=\"\",\"\",AH32)","v":""},null,null,null,0,""]
["Spain",null,"Remboursé",null,"Aéroclub Saint-Rémy Les Alpilles",null,null,null,null,null,"JS1C Evo",null,null,null,null,null,null,null,null,null,null,null,null,null,null,null,null,null,"Jour 10",{"$f":"IF(AD24>9,AD33+1,\"\")","v":""},null,null,"",{"$f":"IF(AD34=\"\",\"\",AH33)","v":""},null,null,null,0,""]
["Sweden",null,"Nouveau inscrit",null,"Amicale Éric Nessler-La Ferté Alais",null,null,null,null,null,"JS1C-21m",null,null,null,null,null,null,null,null,null,null,null,null,null,null,null,null,null,"Jour 11",{"$f":"IF(AD24>10,AD34+1,\"\")","v":""},null,null,{"$f":"IF(AH35=\"\",\"\",\"Lieu :\")","v":""},{"$f":"IF(AD35=\"\",\"\",AH34)","v":""},null,null,null,0,""]
["Switzerland",null,null,null,"Ass. Aéronautique d'Aspres sur Buëch",null,null,null,null,null,"JS3",null,null,null,null,null,null,null,null,null,null,null,null,null,null,null,null,null,"Jour 12",{"$f":"IF(AD24>11,AD35+1,\"\")","v":""},null,null,{"$f":"IF(AH36=\"\",\"\",\"Lieu :\")","v":""},{"$f":"IF(AD36=\"\",\"\",AH35)","v":""},null,null,null,{"$f":"IF(AH36=\"\",0,1)","v":0},""]
["Ukraine",null,null,null,"Ass. Aéronautique de Coulommiers-Meaux",null,null,null,null,null,"JS3 Jet",null,null,null,null,null,null,null,null,null,null,null,null,null,null,null,null,null,"Jour 13",{"$f":"IF(AD24>12,AD36+1,\"\")","v":""},null,null,{"$f":"IF(AH37=\"\",\"\",\"Lieu :\")","v":""},{"$f":"IF(AD37=\"\",\"\",AH36)","v":""},null,null,null,{"$f":"IF(AH37=\"\",0,1)","v":0},""]
[null,null,null,null,"Ass. Aéronautique du Val d'Essonne",null,null,null,null,null,"JS3 TJ",null,null,null,null,null,null,null,null,null,null,null,null,null,null,null,null,null,"Jour 14",{"$f":"IF(AD24>13,AD37+1,\"\")","v":""},null,null,{"$f":"IF(AH38=\"\",\"\",\"Lieu :\")","v":""},{"$f":"IF(AD38=\"\",\"\",AH37)","v":""},null,null,null,{"$f":"IF(AH38=\"\",0,1)","v":0},""]
[null,null,null,null,"Ass. Aéronautique Provence Côte d'Azur",null,null,null,null,null,"LAK-17A",null,null,null,null,null,null,null,null,null,null,null,null,null,null,null,null,null,"Jour 15",{"$f":"IF(AD24>14,AD38+1,\"\")","v":""},null,null,{"$f":"IF(AH39=\"\",\"\",\"Lieu :\")","v":""},{"$f":"IF(AD39=\"\",\"\",AH38)","v":""},null,null,null,{"$f":"IF(AH39=\"\",0,1)","v":0},""]
[null,null,null,null,"Ass. Aéronautique Verdon Alpilles",null,null,null,null,null,"LS4",null,null,null,null,null,null,null,null,null,null,null,null,null,null,null,null,null,"Jour 16",{"$f":"IF(AD24>15,AD39+1,\"\")","v":""},null,null,{"$f":"IF(AH40=\"\",\"\",\"Lieu :\")","v":""},{"$f":"IF(AD40=\"\",\"\",AH39)","v":""},null,null,null,{"$f":"IF(AH40=\"\",0,1)","v":0},""]
[null,null,null,null,"Ass. Compiègnoise de Voile à Voile",null,null,null,null,null,"LS6",null,null,null,null,null,null,null,null,null,null,null,null,null,null,null,null,null,"Dernier jour",{"$f":"IF($AD24=16,AD40,IF($AD24=15,AD39,IF($AD24=14,AD38,IF($AD24=13,AD37,IF($AD24=12,AD36,IF($AD24=11,AD35,IF($AD24=10,AD34,IF($AD24=9,AD33,IF(AD24=8,AD32,IF($AD24=7,AD31,IF($AD24=6,AD30,IF($AD41=5,AD29,IF($AD41=4,AD28,IF($AD41=3,AD27,IF($AD41=2,AD26,IF($AD41=1,AD25,\"\"))))))))))))))))","v":"2022-07-23"},null,null,"Lieu :",{"$f":"IF(AD42=8,AH32,IF(AD42=7,AH31,IF(AD42=6,AH30,IF(AD42=5,AH29,IF(AD42=4,AH28,IF(AD42=3,AH27,IF(AD42=2,AH26,IF(AD42=1,AH25,\"\"))))))))","v":"BUNO-BONEVEAU"},null,null,null,null,"Affichage automatique : ne pas modifier"]
[null,null,null,null,"Ass. Sportive de Vol à Voile d'Angers",null,null,null,null,null,"LS6 17,5m",null,null,null,null,null,null,null,null,null,null,null,null,null,null,null,null,null,"Nombre de jours (contrôle)",{"$f":"SUM(AL25:AL40)","v":7},null,{"$f":"IF(AD24=AD42,\"\",\"ERREUR ?\")","v":""}]
[null,null,null,null,"Ass. Sportive Vélivole Raymond Delmotte",null,null,null,null,null,"LS8-18"]
[null,null,null,null,"Ass. Sportive Vélivole Soissonnaise",null,null,null,null,null,"Pegase"]
[null,null,null,null,"Ass. VàV Saint Dizier-Joinville-Mussey",null,null,null,null,null,"SF28 A"]
[null,null,null,null,"Ass. Véli. Château Arnoux-Saint Auban",null,null,null,null,null,"tbd"]
[null,null,null,null,"Ass. Vélivole Aéronautiqe Toulousaine",null,null,null,null,null,"Ventus 2cxa"]
[null,null,null,null,"Ass. Vélivole Perpignan-Roussillon",null,null,null,null,null,"VENTUS 2cxM"]
[null,null,null,null,"Ass. Vol à Voile Léonard de Vinci",null,null,null,null,null,"Ventus 2cxt"]
[null,null,null,null,"Ass. Vosgienne Sportive de Vol à Voile",null,null,null,null,null,"Ventus 3 TS"]
[null,null,null,null,"Associaion Vélivole du Tricastin",null,null,null,null,null,"Ventus C 17,6m"]
[null,null,null,null,"Association Aéronautique Creusoise"]
[null,null,null,null,"Association Aéronautique d'Aquitaine"]
[null,null,null,null,"Association Aéronautique de la Llagonne"]
[null,null,null,null,"Association Aéronautique de Rochecourbe"]
[null,null,null,null,"Association Aéronautique du Val d'Oise"]
[null,null,null,null,"Association Ardennaise de Vol à Voile"]
[null,null,null,null,"Association Belfortaine de Vol à Voile"]
[null,null,null,null,"Association Châlonnaise de Vol à Voile"]
[null,null,null,null,"Association des Ailes de l'Artois"]
[null,null,null,null,"Association Limousine de Sports Aériens"]
[null,null,null,null,"Association Monégasque de Vol à Voile"]
[null,null,null,null,"Association Tarnaise de Vol à Voile"]
[null,null,null,null,"Association Vélivole de Carpentras"]
[null,null,null,null,"Association Vélivole de Tarbes"]
[null,null,null,null,"Association Vélivole des Causses"]
[null,null,null,null,"Association Vol à Voile du Blanc"]
[null,null,null,null,"Ateliers Industriels de l'Aéronautique"]
[null,null,null,null,"Biscarosse Olympique Planeurs"]
[null,null,null,null,"Bourges Planeurs"]
[null,null,null,null,"Caen Falaise Planeurs"]
[null,null,null,null,"Cambrai Planeur Aéro Club"]
[null,null,null,null,"Centre Aéro. Vélivole de l'Avesnois"]
[null,null,null,null,"Centre Aéronautique de Beynes"]
[null,null,null,null,"Centre de Formation Planeur Alençon"]
[null,null,null,null,"Centre de Planeur de Troyes Aube"]
[null,null,null,null,"Centre de Planeurs du Sénonais"]
[null,null,null,null,"Centre de VàV de la Montagne Noire"]
[null,null,null,null,"Centre de VàV de Saint Florentin-Chéu"]
[null,null,null,null,"Centre de Vol à Voile Bressan"]
[null,null,null,null,"Centre de Vol à Voile de Chartres"]
[null,null,null,null,"Centre de Vol à Voile de la Crau"]
[null,null,null,null,"Centre de Vol à Voile de l'Eure"]
[null,null,null,null,"Centre de Vol à Voile de l'Ubaye"]
[null,null,null,null,"Centre de Vol à Voile de Montargis"]
[null,null,null,null,"Centre de Vol à Voile d'Haguenau"]
[null,null,null,null,"Centre de Vol à Voile d'Itxassou"]
[null,null,null,null,"Centre de Vol à Voile du Beaujolais"]
[null,null,null,null,"Centre de Vol à Voile du Périgord"]
[null,null,null,null,"Centre de Vol à Voile du Velay"]
[null,null,null,null,"Centre de Vol à Voile Lotois"]
[null,null,null,null,"Centre de Vol à Voile Lyonnais"]
[null,null,null,null,"Centre de Vol à Voile Marmandais"]
[null,null,null,null,"Centre de Vol à Voile Nivernais"]
[null,null,null,null,"Centre de Vol à Voile Roannais"]
[null,null,null,null,"Centre de Vol à Voile Thouarsais"]
[null,null,null,null,"Centre de Vol à Voile Vauville-Hague"]
[null,null,null,null,"Centre École de VàV de la Mayenne"]
[null,null,null,null,"Centre École de VàV du Haut Béarn"]
[null,null,null,null,"Centre Inst. Pratique VàV Strasbourg"]
[null,null,null,null,"Centre Inter Clubs Véli. Vosges Alsace"]
[null,null,null,null,"Centre National de Vol à Voile"]
[null,null,null,null,"Centre Planeurs de l'Aveyron"]
[null,null,null,null,"Centre Régional de VàV de Ghisonaccia"]
[null,null,null,null,"Centre Savoyard de Vol à Voile Alpin"]
[null,null,null,null,"Centre VàV de l'Aéroclub du Doubs"]
[null,null,null,null,"Centre VàV Fontainebleau et sa Région"]
[null,null,null,null,"Centre VàV Montpellier Pic Saint Loup"]
[null,null,null,null,"Centre Vélivole d'Auch"]
[null,null,null,null,"Centre Vélivole Foyen"]
[null,null,null,null,"Centre Vol à Voile Gardois"]
[null,null,null,null,"Chanet Vol à Voile"]
[null,null,null,null,"Club de Vol à Voile Air Inter"]
[null,null,null,null,"Club de Vol à Voile Flandres-Artois"]
[null,null,null,null,"Club Fournier International"]
[null,null,null,null,"Club Planeur Vol à Voile Saumurois"]
[null,null,null,null,"Club VàV de Langres-Rolampont-Chaumont"]
[null,null,null,null,"Club Vol à Voile de La Motte du Caire"]
[null,null,null,null,"Colibri"]
[null,null,null,null,"Dijon Planeurs"]
[null,null,null,null,"Elan Planeur"]
[null,null,null,null,"Grenoble Vol à Voile"]
[null,null,null,null,"Group. Préservation du Patrimoine Aéro."]
[null,null,null,null,"Groupe l'Air"]
[null,null,null,null,"Groupement Rouennais d'Aviation Légère"]
[null,null,null,null,"Les Ailes Angoumoises et Charentaises"]
[null,null,null,null,"Les Ailes Cognacaises"]
[null,null,null,null,"Les Ailes Dauphinoises"]
[null,null,null,null,"Les Ailes du Maine Planeurs"]
[null,null,null,null,"Les Planeurs d'Avignon Pujaut"]
[null,null,null,null,"Les Planeurs de Puivert en Quercy"]
[null,null,null,null,"Les Planeurs de Saintonge"]
[null,null,null,null,"Les Planeurs d'Orléans"]
[null,null,null,null,"Les Vélivoles de l'Agenais"]
[null,null,null,null,"Lille Planeurs"]
[null,null,null,null,"Luberon sous le Vent"]
[null,null,null,null,"Mulhouse Planeurs"]
[null,null,null,null,"Planeur Club de l'Atlantique"]
[null,null,null,null,"Planeur Club de Moulins"]
[null,null,null,null,"Planeur Club de Niort"]
[null,null,null,null,"Planeur Club des Coquelicots"]
[null,null,null,null,"Planeur Passion"]
[null,null,null,null,"Planeurs Club de Vichy"]
[null,null,null,null,"Planeurs Club Sud Vendée"]
[null,null,null,null,"Planeurs de Brocéliande"]
[null,null,null,null,"Planeurs de Rion des Landes"]
[null,null,null,null,"Planeurs d'Ille-et-Vilaine"]
[null,null,null,null,"Planeurs du Bassin d'Arcachon"]
[null,null,null,null,"Planeurs en Creuse"]
[null,null,null,null,"Planeurs Léman Mont-Blanc"]
[null,null,null,null,"Planeurs Paray Bourgogne Sud"]
[null,null,null,null,"Planeurs Pyrénées Comminges"]
[null,null,null,null,"Planeurs Tarn et Garonne"]
[null,null,null,null,"Pôle France Planeur"]
[null,null,null,null,"Reims Planeur"]
[null,null,null,null,"Section Aéro de l'ENIT de Tarbes"]
[null,null,null,null,"Seyne les Alpes Air Gliding Association"]
[null,null,null,null,"Ténarèze Gascogne Vélivole"]
[null,null,null,null,"Valence Planeurs"]
[null,null,null,null,"Vercors Vol à Voile"]
[null,null,null,null,"Vol à Voile du Haut Bugey"]
[null,null,null,null,"Vol à Voile Yonnais"]